bitfinex-derivatives/quotes_SOLF0:USTF0_20230103
["timestamp","ask_amount","ask_price","bid_price","bid_amount"]
[1672762421017,0.06201327,13.334,13.331,56.26]
[1672762421228,5.0,13.36,13.338,1.7329643]
[1672762422283,0.06047693,13.354,13.344,0.06999639]
[1672762422599,0.07061679,13.354,13.344,0.06977772]
[1672762423332,0.07061679,13.354,13.345,56.2]
[1672762425434,0.07061679,13.354,13.344,0.06977772]
[1672762425637,0.07061679,13.354,13.346,1.5]
[1672762428593,0.07061679,13.354,13.347,56.19]
[1672762428906,0.07061679,13.354,13.344,0.06977772]
[1672762429429,0.07061679,13.354,13.347,1.8]
[1672762431320,1.679e-05,13.354,13.347,1.8]
[1672762431531,1.679e-05,13.354,13.348,56.19]
[1672762431951,1.679e-05,13.354,13.347,1.8]
[1672762432578,1.679e-05,13.354,13.348,56.19]
[1672762433215,1.679e-05,13.354,13.345,56.2]
[1672762433946,1.679e-05,13.354,13.347,1.1]
[1672762434157,1.679e-05,13.354,13.348,56.19]
[1672762434683,1.679e-05,13.354,13.347,1.1]
[1672762436783,1.679e-05,13.354,13.344,0.06977772]
[1672762438674,1.679e-05,13.354,13.347,1.0]
[1672762441721,1.679e-05,13.354,13.344,0.06977772]
[1672762441931,1.679e-05,13.354,13.345,56.2]
[1672762442244,1.679e-05,13.354,13.344,0.06977772]
[1672762442456,1.679e-05,13.354,13.347,1.7]
[1672762444660,1.679e-05,13.354,13.348,56.19]
[1672762445077,1.679e-05,13.354,13.347,1.7]
[1672762445291,5.0,13.372,13.354,0.13462495]
[1672762446341,5.0,13.364,13.358,0.00954439]
[1672762450026,50.0,13.359,13.325,56.29]
[1672762450231,5.0,13.354,13.315,56.33]
[1672762450865,5.0,13.354,13.305,56.37]
[1672762451075,0.06666181,13.334,13.325,0.0654477]
[1672762451282,0.06436366,13.334,13.326,56.28]
[1672762451809,5.0,13.354,13.326,56.28]
[1672762452019,5.0,13.354,13.325,56.29]
[1672762452649,0.06863564,13.344,13.335,0.06966738]
[1672762452860,0.0616931,13.344,13.336,56.24]
[1672762453169,0.0616931,13.344,13.335,0.06181453]
[1672762456006,5.0,13.343,13.295,50.0]
[1672762456321,5.0,13.335,13.295,50.0]
[1672762456536,5.0,13.335,13.305,50.0]
[1672762456743,5.0,13.335,13.306,56.37]
[1672762456956,0.0614065,13.325,13.316,0.06973313]
[1672762457164,0.07104836,13.325,13.316,0.06913994]
[1672762458851,5.0,13.324,13.285,50.0]
[1672762459165,5.0,13.324,13.286,56.45]
[1672762459375,5.0,13.324,13.285,50.0]
[1672762459587,5.0,13.324,13.277,56.49]
[1672762459901,0.06897786,13.305,13.296,0.06117597]
[1672762460111,0.0603251,13.305,13.296,0.06732708]
[1672762460318,5.0,13.304,13.276,107.14285714]
[1672762460529,5.0,13.304,13.277,56.49]
[1672762460954,5.0,13.304,13.276,57.14285714]
[1672762461376,0.06176119,13.295,13.285,50.06231398]
[1672762461587,0.06176119,13.295,13.285,0.06608285]
[1672762461588,0.06628539,13.295,13.285,0.06608285]
[1672762462528,0.06628539,13.295,13.285,50.06608285]
[1672762462942,5.0,13.324,13.294,50.0]
[1672762463156,5.0,13.324,13.285,50.0]
[1672762464001,0.06997375,13.309,13.3,0.07114913]
[1672762464211,0.07115824,13.309,13.3,0.06324077]
[1672762465473,0.07115824,13.309,13.3,0.00324077]
[1672762465894,5.0,13.308,13.286,1.3]
[1672762466727,0.06921123,13.302,13.292,0.06819894]
[1672762466942,0.06921123,13.302,13.292,0.06912666]
[1672762467362,0.06921123,13.302,13.292,2.666e-05]
[1672762467571,5.0,13.301,13.286,1.3]
[1672762467786,5.0,13.301,13.264,50.0]
[1672762467993,5.0,13.301,13.254,50.0]
[1672762468408,0.06766186,13.282,13.273,0.06100768]
[1672762468622,0.06408704,13.282,13.254,50.0]
[1672762468934,0.07096077,13.273,13.263,50.07115776]
[1672762469146,0.06353027,13.273,13.272,50.0]
[1672762469358,0.06483308,13.277,13.272,50.0]
[1672762469566,0.06770159,13.279,13.272,50.0]
[1672762469777,0.06625444,13.28,13.271,0.06502192]
[1672762469991,0.06429875,13.28,13.271,0.06351755]
[1672762473985,5.0,13.279,13.244,56.63]
[1672762474197,5.0,13.279,13.253,50.0]
[1672762474511,5.0,13.279,13.243,50.0]
[1672762474720,5.0,13.279,13.253,50.0]
[1672762474924,0.06031633,13.271,13.261,0.07040374]
[1672762475132,5.0,13.279,13.261,0.06636375]
[1672762475347,0.06231523,13.275,13.265,0.06203527]
[1672762475668,0.06630975,13.275,13.265,0.06490827]
[1672762475981,5.0,13.274,13.243,50.0]
[1672762477138,0.06288866,13.263,13.254,0.06195734]
[1672762477348,0.0698396,13.263,13.254,0.06303577]
[1672762478293,44.9481,13.296,13.261,50.0]
[1672762478502,5.0,13.283,13.251,50.0]
[1672762478713,5.0,13.283,13.254,1.1]
[1672762479028,5.0,13.283,13.255,56.58]
[1672762479235,0.06262582,13.274,13.264,0.06625366]
[1672762479445,0.07014305,13.274,13.264,0.061124]
[1672762479659,0.07014305,13.274,13.264,0.001124]
[1672762488171,0.07014305,13.274,13.265,56.54]
[1672762488801,0.07014305,13.274,13.264,1.801124]
[1672762489013,0.07014305,13.274,13.265,56.54]
[1672762489223,0.07014305,13.274,13.264,1.801124]
[1672762491845,0.07014305,13.274,13.265,56.54]
[1672762492065,0.07014305,13.274,13.272,50.0]
[1672762492265,0.06907588,13.278,13.272,50.0]
[1672762492582,0.06575183,13.28,13.272,50.0]
[1672762492797,0.06043384,13.281,13.273,56.51]
[1672762493010,0.07145076,13.282,13.273,56.51]
[1672762493217,0.06690554,13.282,13.281,50.0]
[1672762493527,46.6245,13.318,13.281,106.47]
[1672762493736,5.0,13.317,13.291,50.0]
[1672762493949,5.0,13.317,13.292,56.42]
[1672762494365,5.0,13.327,13.292,56.42]
[1672762494580,0.06340745,13.313,13.303,0.06774937]
[1672762494785,0.0674632,13.313,13.304,56.37]
[1672762495208,0.0674632,13.313,13.303,0.06854805]
[1672762495626,0.0674632,13.313,13.302,26.39143954]
[1672762495845,5.0,13.312,13.292,56.42]
[1672762496263,5.0,13.312,13.281,56.47]
[1672762496472,5.0,13.312,13.29,22.94758595]
[1672762496685,0.06914008,13.306,13.296,0.06588136]
[1672762496889,0.06914008,13.306,13.296,0.06780208]
[1672762497100,0.06914008,13.306,13.297,56.4]
[1672762497522,0.06914008,13.306,13.3,22.94758595]
[1672762497733,0.06914008,13.306,13.301,56.39]
[1672762498365,0.06914008,13.306,13.299,0.06829496]
[1672762498682,0.06914008,13.306,13.3,22.94758595]
[1672762499104,0.06914008,13.306,13.301,56.39]
[1672762500460,4.008e-05,13.306,13.305,22.94758595]
[1672762500672,5.0,13.329,13.305,79.31758595]
[1672762500888,5.0,13.329,13.31,22.94758595]
[1672762501098,27.05241405,13.333,13.31,22.94758595]
[1672762501305,27.05241405,13.333,13.303,56.38]
[1672762501622,5.06792247,13.322,13.312,0.06664826]
[1672762501827,5.0617344,13.322,13.312,0.06010686]
[1672762502046,5.0617344,13.322,13.312,0.00010686]
[1672762502249,5.0,13.321,13.29,22.94758595]
[1672762502454,5.0,13.321,13.291,44.4048976]
[1672762502670,5.0,13.321,13.29,22.94758595]
[1672762503093,5.0,13.321,13.27,22.94758595]
[1672762503094,50.0,13.318,13.27,22.94758595]
[1672762503300,27.05241405,13.303,13.28,22.94758595]
[1672762503618,5.0,13.302,13.27,22.94758595]
[1672762503828,5.0,13.302,13.271,56.51]
[1672762504248,0.06933039,13.291,13.282,0.06333461]
[1672762504771,0.06933039,13.291,13.283,56.46]
[1672762504982,0.06933039,13.291,13.289,22.94758595]
[1672762505300,0.06087965,13.295,13.29,56.43]
[1672762505615,0.06904617,13.297,13.29,56.43]
[1672762505824,0.06156015,13.298,13.296,22.94758595]
[1672762506037,0.06724194,13.302,13.297,56.4]
[1672762506345,0.06376149,13.304,13.295,0.06975468]
[1672762506558,0.07042168,13.304,13.295,0.06521772]
[1672762506768,5.0,13.303,13.279,22.94758595]
[1672762506973,5.0,13.303,13.289,22.94758595]
[1672762507189,5.0,13.303,13.279,22.94758595]
[1672762507400,5.0,13.303,13.28,56.48]
[1672762507817,0.07117199,13.296,13.289,22.94758595]
[1672762508031,0.06021494,13.297,13.29,56.43]
[1672762508240,0.06592154,13.298,13.29,56.43]
[1672762508451,0.07132289,13.299,13.29,56.43]
[1672762508654,0.0610312,13.299,13.29,56.50128268]
[1672762509397,0.0610312,13.299,13.29,0.07128268]
[1672762509607,5.0,13.317,13.298,22.94758595]
[1672762509817,5.0,13.317,13.299,56.4]
[1672762510233,5.0,13.317,13.289,56.44]
[1672762510446,27.05241405,13.322,13.289,56.44]
[1672762510652,0.068549,13.31,13.301,0.06285834]
[1672762510864,0.06501729,13.31,13.302,56.38]
[1672762511290,5.0,13.327,13.308,22.94758595]
[1672762511503,5.0,13.327,13.309,56.35]
[1672762511706,27.05241405,13.322,13.299,56.4]
[1672762512026,5.0,13.321,13.289,56.44]
[1672762512551,0.07143858,13.31,13.3,0.06030902]
[1672762512757,0.07143858,13.31,13.301,56.39]
[1672762512758,0.0640854,13.31,13.301,56.39]
[1672762514329,0.0640854,13.31,13.3,0.0062124]
[1672762518221,0.0640854,13.31,13.301,56.39]
[1672762518432,0.0640854,13.31,13.301,57.49]
[1672762519171,0.0640854,13.31,13.301,1.1]
[1672762519695,0.0640854,13.31,13.302,56.38]
[1672762519904,0.0640854,13.31,13.301,57.49]
[1672762520117,0.0640854,13.31,13.3,0.0062124]
[1672762520746,5.0640854,13.31,13.3,0.0062124]
[1672762520957,0.0640854,13.31,13.3,0.0062124]
[1672762521163,0.0640854,13.31,13.301,56.39]
[1672762521585,5.0,13.309,13.287,22.94758595]
[1672762521797,5.0,13.309,13.288,56.44]
[1672762522218,5.0,13.309,13.278,56.48]
[1672762522748,0.06250893,13.298,13.289,0.06211531]
[1672762523060,0.06035224,13.298,13.289,0.06577337]
[1672762524952,0.06035224,13.298,13.29,56.43]
[1672762525478,0.06035224,13.298,13.289,0.06577337]
[1672762527895,27.05241405,13.291,13.289,0.00577337]
[1672762528106,27.05241405,13.291,13.267,56.53]
[1672762528422,5.0,13.29,13.267,56.53]
[1672762528733,5.0,13.29,13.257,56.57]
[1672762528946,5.0,13.29,13.266,22.94758595]
[1672762529260,0.06125437,13.283,13.273,0.06416126]
[1672762529466,0.06521897,13.283,13.274,56.5]
[1672762529886,0.06521897,13.283,13.275,22.94758595]
[1672762530207,0.06521897,13.283,13.276,56.49]
[1672762530837,0.06521897,13.283,13.275,22.94758595]
[1672762531151,0.06521897,13.283,13.276,56.49]
[1672762532202,27.05241405,13.277,13.274,56.43]
[1672762532410,77.05241405,13.275,13.226,22.94758595]
[1672762532617,50.0,13.275,13.236,22.94758595]
[1672762532826,27.05241405,13.27,13.235,22.94758595]
[1672762533040,5.0,13.269,13.245,22.94758595]
[1672762533247,5.0,13.269,13.246,56.62]
[1672762533457,0.06766416,13.262,13.252,0.06814858]
[1672762533668,27.05241405,13.26,13.236,56.66]
[1672762533884,5.0,13.259,13.235,22.94758595]
[1672762534088,5.0,13.259,13.236,56.66]
[1672762534620,5.0,13.259,13.244,22.94758595]
[1672762534828,5.0,13.259,13.245,56.63]
[1672762535039,0.060708,13.256,13.247,0.07094755]
[1672762535247,0.06202204,13.256,13.247,0.06618984]
[1672762535669,5.0,13.255,13.247,0.00618984]
[1672762537359,27.05241405,13.249,13.247,0.00618984]
[1672762537568,5.0,13.248,13.225,56.71]
[1672762537779,5.0,13.248,13.078,1783.0]
[1672762537780,27.05241405,13.239,13.215,56.75]
[1672762537990,27.05241405,13.239,13.205,56.8]
[1672762538298,5.0,13.238,13.214,22.94758595]
[1672762538508,5.0,13.238,13.215,56.75]
[1672762538716,0.06389527,13.231,13.221,0.07049368]
[1672762538927,5.0,13.238,13.215,56.75]
[1672762539142,0.06085262,13.231,13.224,22.94758595]
[1672762539352,0.06111022,13.232,13.225,56.71]
[1672762539558,0.06215801,13.233,13.225,56.71]
[1672762539775,5.0,13.246,13.232,22.94758595]
[1672762539984,5.0,13.246,13.233,56.68]
[1672762540188,5.0,13.246,13.226,56.71]
[1672762540612,5.0,13.237,13.216,56.75]
[1672762540817,0.0616978,13.231,13.222,0.06663541]
[1672762541036,0.06352723,13.231,13.222,0.06672522]
[1672762541239,0.06352723,13.231,13.223,56.72]
[1672762541453,0.06352723,13.231,13.222,0.06672522]
[1672762541660,5.0,13.23,13.205,22.94758595]
[1672762542089,5.0,13.23,13.204,22.94758595]
[1672762542297,5.0,13.23,13.205,56.8]
[1672762542821,0.06138972,13.222,13.213,0.06808799]
[1672762543026,0.06081564,13.222,13.214,79.70758595]
[1672762543241,0.06081564,13.222,13.213,0.06621797]
[1672762543452,5.0,13.221,13.199,56.82]
[1672762543877,5.0,13.221,13.204,22.94758595]
[1672762544087,5.0,13.221,13.205,56.8]
[1672762544293,5.0,13.221,13.199,56.82]
[1672762544612,0.06565348,13.215,13.205,0.06941321]
[1672762544815,0.06565348,13.215,13.205,0.07056875]
[1672762545029,0.06565348,13.215,13.206,56.79]
[1672762545235,0.06565348,13.215,13.205,0.07056875]
[1672762545660,0.06565348,13.215,13.206,56.79]
[1672762546084,0.06565348,13.215,13.205,0.07056875]
[1672762546609,0.06565348,13.215,13.206,56.79]
[1672762546924,0.06565348,13.215,13.205,0.07056875]
[1672762547554,5.06565348,13.215,13.205,0.07056875]
[1672762548288,0.06565348,13.215,13.205,0.07056875]
[1672762548714,0.06565348,13.215,13.206,56.79]
[1672762549763,0.06565348,13.215,13.205,0.07056875]
[1672762550288,5.0,13.214,13.205,0.07056875]
[1672762551129,5.0,13.214,13.205,0.00056875]
[1672762551443,27.05241405,13.206,13.185,56.47623486]
[1672762551761,32.05241405,13.205,13.175,56.93]
[1672762551967,5.0,13.204,13.175,56.93]
[1672762552285,5.0,13.204,13.183,22.94758595]
[1672762552492,0.0617299,13.198,13.189,0.06683806]
[1672762552710,0.07097169,13.198,13.19,56.86]
[1672762553233,0.07097169,13.198,13.189,0.06021634]
[1672762554602,0.07097169,13.198,13.19,56.86]
[1672762555439,0.07097169,13.198,13.189,0.06021634]
[1672762556383,5.0,13.213,13.12,5.0]
[1672762556384,5.0,13.218,13.193,22.94758595]
[1672762556700,55.0,13.237,13.202,22.94758595]
[1672762556910,5.0,13.232,13.203,56.81]
[1672762557119,27.05241405,13.223,13.203,56.81]
[1672762557331,0.06680975,13.218,13.208,0.06321211]
[1672762557542,0.06974531,13.218,13.208,0.06855859]
[1672762557753,0.06974531,13.218,13.209,56.78]
[1672762558070,27.05241405,13.213,13.208,0.00855859]
[1672762558486,5.0,13.212,13.208,0.00855859]
[1672762559326,0.06373086,13.215,13.208,0.00855859]
[1672762559966,0.06373086,13.215,13.209,56.78]
[1672762560908,0.06373086,13.215,13.208,0.00855859]
[1672762561645,0.06373086,13.215,13.209,56.78]
[1672762561855,0.06373086,13.215,13.208,0.00855859]
[1672762562481,5.0,13.211,13.208,0.00855859]
[1672762562690,5.0,13.211,13.161,41.9039]
[1672762562691,5.0,13.208,13.205,0.06974986]
[1672762562899,5.0,13.208,13.181,22.94758595]
[1672762563115,27.05241405,13.203,13.182,56.9]
[1672762563324,5.0,13.208,13.191,22.94758595]
[1672762563531,5.0,13.208,13.192,56.85]
[1672762563745,27.05241405,13.203,13.195,0.06352033]
[1672762563956,5.0,13.202,13.172,56.94]
[1672762564166,5.0,13.202,13.171,22.94758595]
[1672762564371,27.05241405,13.193,13.161,22.94758595]
[1672762564583,27.05241405,13.193,13.171,22.94758595]
[1672762564893,0.07009535,13.187,13.177,0.07015101]
[1672762565112,0.07009535,13.187,13.178,56.91]
[1672762565428,0.07009535,13.187,13.177,0.0700128]
[1672762565845,0.07009535,13.187,13.178,56.91]
[1672762567424,3.37009535,13.192,13.178,56.91]
[1672762567737,3.37009535,13.192,13.172,56.94]
[1672762568053,5.0,13.2,13.181,22.94758595]
[1672762568262,5.0,13.2,13.182,56.9]
[1672762568473,0.06627913,13.196,13.186,0.06307353]
[1672762568787,0.06269582,13.196,13.186,0.06514122]
[1672762568997,27.05241405,13.192,13.186,0.06514122]
[1672762569313,5.0,13.191,13.186,0.06514122]
[1672762569940,0.0660945,13.193,13.186,0.06514122]
[1672762570367,0.0660945,13.193,13.187,56.87]
[1672762570681,0.0660945,13.193,13.186,0.06514122]
[1672762572052,0.0660945,13.193,13.187,56.87]
[1672762573096,0.0660945,13.193,13.187,2.0]
[1672762574156,27.05241405,13.191,13.187,2.0]
[1672762574366,27.05241405,13.188,13.165,56.97]
[1672762574568,27.05241405,13.182,13.161,22.94758595]
[1672762574889,5.0,13.181,13.162,56.98]
[1672762575301,0.07115982,13.176,13.162,56.98]
[1672762575513,0.07115982,13.176,13.167,0.06654781]
[1672762575726,0.07115982,13.176,13.168,56.96]
[1672762576149,0.07115982,13.176,13.167,0.06654781]
[1672762576677,0.07115982,13.176,13.167,0.00654781]
[1672762576986,27.05241405,13.172,13.159,32.63609591]
[1672762577194,5.0,13.171,13.142,22.94758595]
[1672762577513,5.0,13.171,13.124,5.0]
[1672762577514,5.0,13.171,13.143,57.06]
[1672762577723,27.05241405,13.162,13.133,57.11]
[1672762577934,5.0,13.171,13.141,22.94758595]
[1672762578142,27.05241405,13.162,13.142,57.07]
[1672762578351,27.05241405,13.162,13.141,22.94758595]
[1672762578561,5.0,13.171,13.147,0.06924529]
[1672762578767,5.0,13.171,13.148,57.04]
[1672762579193,5.0,13.171,13.143,57.06]
[1672762579511,27.05241405,13.162,13.148,1.8]
[1672762579713,0.06913363,13.16,13.15,0.07036198]
[1672762579923,27.05241405,13.152,13.15,0.07051343]
[1672762580140,27.05241405,13.152,13.148,1.8]
[1672762580767,50.0,13.155,13.148,1.8]
[1672762580982,5.0,13.151,13.148,1.8]
[1672762581298,25.96853253,13.152,13.148,1.8]
[1672762581613,0.06027219,13.156,13.148,1.8]
[1672762581823,0.12284648,13.161,13.149,57.04]
[1672762582036,5.0,13.174,13.149,57.04]
[1672762582246,0.12284648,13.171,13.152,49.87715352]
[1672762582455,5.0,13.179,13.153,57.02]
[1672762582875,0.06518788,13.171,13.149,57.04]
[1672762583082,0.06822561,13.165,13.149,57.04]
[1672762583289,0.06452032,13.162,13.155,0.06500185]
[1672762583499,5.0,13.179,13.156,57.01]
[1672762583713,5.0,13.179,13.152,50.0]
[1672762583714,5.0,13.179,13.153,57.02]
[1672762583926,5.0,13.179,13.142,50.0]
[1672762584133,5.0,13.179,13.143,57.06]
[1672762584349,5.0,13.179,13.152,1.3]
[1672762584664,5.0,13.179,13.161,0.06230467]
[1672762584873,44.7262,13.243,13.171,50.0]
[1672762585084,586.0,13.227,13.172,56.94]
[1672762585399,5.0,13.203,13.172,56.94]
[1672762585609,0.06658746,13.192,13.162,56.98]
[1672762585812,0.07018766,13.182,13.172,0.07032154]
[1672762586024,0.06481401,13.182,13.152,1.3]
[1672762586235,0.06614758,13.172,13.152,1.3]
[1672762586443,0.06415279,13.167,13.162,0.06333668]
[1672762586652,50.0,13.174,13.16,0.06917123]
[1672762586872,0.06015856,13.169,13.132,50.0]
[1672762587080,0.07066646,13.155,13.141,50.0]
[1672762587285,0.07115193,13.153,13.146,0.06542642]
[1672762587495,5.0,13.173,13.147,57.05]
[1672762587708,5.0,13.173,13.152,1.7]
[1672762587917,50.0,13.165,13.152,1.7]
[1672762588333,0.06383635,13.153,13.144,0.06577682]
[1672762588544,0.06139535,13.153,13.123,57.15]
[1672762588754,5.0,13.144,13.123,57.15]
[1672762589071,0.43153006,13.144,13.129,0.06246423]
[1672762589284,5.0,13.154,13.13,57.12]
[1672762589491,5.0,13.154,13.12,57.16]
[1672762589706,55.0,13.154,13.12,57.16]
[1672762589909,5.0,13.154,13.12,57.16]
[1672762590121,55.0,13.154,13.12,57.16]
[1672762590336,0.06444616,13.142,13.132,0.06619173]
[1672762590644,5.07014004,13.154,13.133,57.11]
[1672762590857,5.0,13.153,13.135,44.92985996]
[1672762591063,5.0,13.163,13.136,57.1]
[1672762591485,5.0,13.163,13.144,44.92985996]
[1672762591702,0.06195027,13.158,13.145,57.06]
[1672762591911,0.06195027,13.158,13.149,0.06508234]
[1672762592121,5.0,13.171,13.15,57.03]
[1672762592333,5.07014004,13.165,13.145,57.06]
[1672762592543,5.07014004,13.156,13.134,44.92985996]
[1672762592749,5.07014004,13.165,13.135,57.1]
[1672762592959,0.0702021,13.155,13.145,0.0677768]
[1672762593280,0.06466568,13.155,13.146,57.05]
[1672762593496,0.06932657,13.155,13.146,0.06695627]
[1672762593800,5.0,13.171,13.146,0.06695627]
[1672762594014,5.07014004,13.166,13.147,57.05]
[1672762594331,5.07014004,13.156,13.135,44.92985996]
[1672762594539,5.07014004,13.166,13.136,57.1]
[1672762594751,5.07014004,13.157,13.126,57.14]
[1672762594961,0.06843636,13.146,13.121,107.16]
[1672762595175,0.06446084,13.138,13.135,44.92985996]
[1672762595379,5.0,13.171,13.136,57.1]
[1672762595696,0.06482006,13.158,13.149,0.06112952]
[1672762595903,5.0,13.171,13.15,57.03]
[1672762596118,5.0,13.171,13.146,57.05]
[1672762596325,5.0,13.171,13.142,57.07]
[1672762596532,5.0,13.171,13.155,44.92985996]
[1672762596741,5.07014004,13.186,13.156,57.01]
[1672762596957,0.06576822,13.172,13.162,0.06968346]
[1672762597165,5.0,13.194,13.165,44.92985996]
[1672762597377,5.07014004,13.186,13.166,56.96]
[1672762597690,5.0,13.194,13.166,56.96]
[1672762598219,5.0,13.194,13.174,0.06042151]
[1672762598428,0.06974028,13.187,13.178,0.06803929]
[1672762598633,0.06128822,13.187,13.178,0.06803929]
[1672762598845,5.0,13.194,13.179,56.91]
[1672762599374,5.07014004,13.206,13.179,56.91]
[1672762599579,5.07014004,13.206,13.176,56.92]
[1672762599788,0.06776152,13.196,13.186,0.06517333]
[1672762600002,0.06758615,13.196,13.186,0.07128237]
[1672762600738,5.07014004,13.187,13.186,0.00128237]
[1672762600948,5.07014004,13.187,13.176,56.92]
[1672762600949,5.0,13.205,13.168,56.96]
[1672762601683,5.0,13.205,13.175,50.0]
[1672762601894,5.0,13.204,13.176,56.92]
[1672762602526,5.0,13.204,13.168,56.96]
[1672762602839,5.0,13.204,13.166,56.96]
[1672762603155,0.06752063,13.191,13.181,0.06443135]
[1672762603364,0.0666347,13.191,13.166,56.96]
[1672762603574,5.0,13.204,13.166,56.96]
[1672762603785,5.0,13.204,13.168,1.5]
[1672762603993,5.0,13.204,13.169,56.95]
[1672762604625,0.06472946,13.191,13.182,0.06497824]
[1672762604833,0.06676678,13.191,13.182,0.06293033]
[1672762606516,0.06676678,13.191,13.182,0.00293033]
[1672762609458,0.06676678,13.191,13.183,1.2]
[1672762611982,0.06676678,13.191,13.182,0.00293033]
[1672762612817,0.06676678,13.191,13.183,56.89]
[1672762613024,0.06676678,13.191,13.182,0.00293033]
[1672762613238,0.06676678,13.191,13.183,1.9]
[1672762614298,5.0,13.205,13.184,56.89]
[1672762615344,0.0670738,13.199,13.184,56.89]
[1672762615555,0.07106179,13.196,13.187,0.06915185]
[1672762615760,43.6799,13.216,13.188,56.87]
[1672762615975,43.6799,13.216,13.187,50.0]
[1672762616185,43.6799,13.216,13.188,56.87]
[1672762616814,0.06422285,13.205,13.196,0.06969103]
[1672762617026,43.6799,13.216,13.196,0.06358089]
[1672762617341,43.6799,13.216,13.188,56.87]
[1672762618183,0.06777729,13.206,13.197,0.06486812]
[1672762618393,0.06460631,13.206,13.197,0.06815997]
[1672762619236,0.06460631,13.206,13.197,0.00815997]
[1672762619865,5.0,13.205,13.187,1.6]
[1672762620604,5.0,13.205,13.169,56.95]
[1672762620920,0.06067111,13.192,13.182,0.06156616]
[1672762621233,0.06024594,13.192,13.187,1.3]
[1672762621760,5.0,13.205,13.155,57.01]
[1672762621969,5.0,13.205,13.146,57.05]
[1672762622283,5.0,13.205,13.158,50.0]
[1672762622489,5.0,13.205,13.159,57.0]
[1672762622700,0.06765704,13.187,13.177,0.06140223]
[1672762622910,5.0,13.186,13.148,57.04]
[1672762623118,5.0,13.186,13.139,57.08]
[1672762623441,5.0,13.186,13.139,50.0]
[1672762623651,5.0,13.186,13.14,57.08]
[1672762624065,0.06409503,13.168,13.158,0.07062085]
[1672762624281,5.0,13.186,13.167,0.06059223]
[1672762624488,5.0,13.186,13.159,107.0]
[1672762624805,5.0,13.186,13.159,57.0]
[1672762625009,5.0,13.186,13.159,50.0]
[1672762625219,0.06857433,13.177,13.168,0.06587215]
[1672762625427,0.06618309,13.177,13.168,0.06036603]
[1672762626057,0.06618309,13.177,13.15,57.03]
[1672762626271,5.0,13.176,13.141,1.3]
[1672762626697,5.0,13.176,13.142,57.07]
[1672762627108,0.06467237,13.164,13.154,0.06308291]
[1672762627322,0.06242742,13.164,13.154,0.06680165]
[1672762631107,5.0,13.186,13.155,57.01]
[1672762631524,5.0,13.203,13.161,50.0]
[1672762631741,47.8012,13.203,13.171,50.0]
[1672762631947,46.0406,13.202,13.172,56.94]
[1672762632271,0.06196535,13.192,13.182,0.06908428]
[1672762632480,5.0,13.201,13.172,56.94]
[1672762632795,0.06532387,13.192,13.182,0.06619008]
[1672762633006,0.06664784,13.192,13.182,0.06619008]
[1672762633207,0.06664784,13.192,13.182,0.06483964]
[1672762633418,0.06664784,13.192,13.182,0.00483964]
[1672762636153,0.06664784,13.192,13.183,1.8]
[1672762637413,0.06664784,13.192,13.182,0.00483964]
[1672762638679,0.06664784,13.192,13.183,1.7]
[1672762639412,0.06664784,13.192,13.182,0.00483964]
[1672762641194,5.0,13.202,13.183,56.89]
[1672762641410,5.0,13.316,13.163,50.0]
[1672762641616,5.0,13.201,13.164,61.97]
[1672762641934,5.0,13.201,13.164,56.97]
[1672762642143,5.0,13.314,13.173,50.0]
[1672762642355,44.6174,13.228,13.184,1.9]
[1672762642561,5.0,13.227,13.185,56.88]
[1672762642773,5.0,13.227,13.193,50.0]
[1672762642982,44.6174,13.228,13.194,56.84]
[1672762643190,5.0,13.31,13.19,56.86]